{"text_format":"1","workbook":"xlsx","n_sheets":2,"sheets":["TargetPlan","EntryData"],"not_rendered":{"charts":0,"images":0,"macros":1,"external_links":0,"defined_names":4,"comments":0,"pivot_tables":0},"unopened":[],"bounds":{"document_bytes":16777216,"sheet_cells":100000,"rows_first":2000,"rows_last":500,"rows_between":2000,"halvings":0,"cell_chars":16384,"cell_head_chars":4096},"cells_cut":0,"cells_raw":0,"read":"whole","date_system":"1900"}

{"sheet":"TargetPlan","index":0,"n_rows":107,"n_cols":26,"rows_kept":107,"cut":false,"hidden":false,"merged":[]}
[null,"iaaCAL  Target  & Stand Planning Tool",null,null,"DATE","2024-01-01",{"$f":"IF(C4<>U1,\"Warning! : Duplicate standing plans \"&V1,\"\")","v":""},null,null,null,null,null,null,null,null,null,null,null,null,null,{"$f":"SUM(U2:U107)","v":16},{"$f":"INDEX(T2:T38,MATCH(MAX(U2:U38),U2:U38,0),0)","v":"1A"}]
[null,"Number of stand",3,"Max number of Archer/target","Game Title",null,"Ichihara Archery ODA",null,null,null,null,"減立数",{"$f":"IF(M3=0,0,C2-M3)","v":2},null,null,null,null,null,null,{"$f":"EntryData!C2&EntryData!D2","v":"1A"},{"$f":"IF(T2=\"\",0,COUNTIF($T$2:$T$38,T2))","v":1}]
[null,"1st Target",1,"Specidied when game with other leagues(usually 1)","league",null,null,null,null,null,null,"余り",{"$f":"MOD(C4,C2)","v":1},null,null,null,null,null,null,{"$f":"EntryData!C3&EntryData!D3","v":"2A"},{"$f":"IF(T3=\"\",0,COUNTIF($T$2:$T$38,T3))","v":1}]
[null,"Archer",{"$f":"COUNTIF(EntryData!E:E,\"=1\")","v":16},null,null,null,null,null,null,null,null,"前的(立数、的数）",{"$f":"C2","v":3},{"$f":"C5-M2","v":4},null,null,null,null,null,{"$f":"EntryData!C4&EntryData!D4","v":"3A"},1]
[null,"Target Number",{"$f":"INT(C4/$C$2+0.999)","v":6},null,null,null,null,null,null,null,null,"減的(立数、的数）",{"$f":"M4-1","v":2},{"$f":"M2","v":2},null,null,null,null,null,{"$f":"EntryData!C5&EntryData!D5","v":"4A"},1]
[null,null,null,null,null,null,null,null,null,null,null,null,null,null,null,null,null,null,null,{"$f":"EntryData!C6&EntryData!D6","v":"5A"},1]
[null,"Target","Stand","A","B","C","D","E",null,null,null,null,null,null,null,null,null,null,null,{"$f":"EntryData!C7&EntryData!D7","v":"6A"},1]
[1,{"$f":"C3","v":1},{"$f":"IF(A8<=$N$4,$M$4,IF(AND(A8>$N$4,A8<=$N$4+$N$5),$M$5,0))","v":3},"oda1","oda7","oda13",null,null,null,null,null,null,null,null,null,null,null,null,null,{"$f":"EntryData!C8&EntryData!D8","v":"1B"},1,null,null,null,null,"小田昭昌24"]
[2,{"$f":"B8+1","v":2},{"$f":"IF(A9<=$N$4,$M$4,IF(AND(A9>$N$4,A9<=$N$4+$N$5),$M$5,0))","v":3},"oda2","oda8","oda14",null,null,null,null,null,null,null,null,null,null,null,null,null,{"$f":"EntryData!C9&EntryData!D9","v":"2B"},1]
[3,{"$f":"B9+1","v":3},{"$f":"IF(A10<=$N$4,$M$4,IF(AND(A10>$N$4,A10<=$N$4+$N$5),$M$5,0))","v":3},"oda3","oda9","oda15",null,null,null,null,null,null,null,null,null,null,null,null,null,{"$f":"EntryData!C10&EntryData!D10","v":"3B"},1]
[4,4,3,"oda4","oda10","oda16",null,null,null,null,null,null,null,null,null,null,null,null,null,{"$f":"EntryData!C11&EntryData!D11","v":"4B"},1]
[5,5,2,"oda5","oda11",null,null,null,null,null,null,null,null,null,null,null,null,null,null,{"$f":"EntryData!C12&EntryData!D12","v":"5B"},1]
[6,6,2,"oda6","oda12",null,null,null,null,null,null,null,null,null,null,null,null,null,null,{"$f":"EntryData!C13&EntryData!D13","v":"6B"},1]
[7,7,0,null,null,null,null,null,null,null,null,null,null,null,null,null,null,null,null,{"$f":"EntryData!C14&EntryData!D14","v":"1C"},1]
[8,8,0,null,null,null,null,null,null,null,null,null,null,null,null,null,null,null,null,{"$f":"EntryData!C15&EntryData!D15","v":"2C"},1]
[9,9,0,null,null,null,null,null,null,null,null,null,null,null,null,null,null,null,null,{"$f":"EntryData!C16&EntryData!D16","v":"3C"},1]
[10,10,0,null,null,null,null,null,null,null,null,null,null,null,null,null,null,null,null,{"$f":"EntryData!C17&EntryData!D17","v":"4C"},1]
[11,11,0,null,null,null,null,null,null,null,null,null,null,null,null,null,null,null,null,{"$f":"EntryData!C18&EntryData!D18","v":""},0]
[12,12,0,null,null,null,null,null,null,null,null,null,null,null,null,null,null,null,null,{"$f":"EntryData!C19&EntryData!D19","v":""},0]
[13,13,0,null,null,null,null,null,null,null,null,null,null,null,null,null,null,null,null,{"$f":"EntryData!C20&EntryData!D20","v":""},0]
[14,14,0,null,null,null,null,null,null,null,null,null,null,null,null,null,null,null,null,{"$f":"EntryData!C21&EntryData!D21","v":""},0]
[15,15,0,null,null,null,null,null,null,null,null,null,null,null,null,null,null,null,null,{"$f":"EntryData!C22&EntryData!D22","v":""},0]
[16,16,0,null,null,null,null,null,null,null,null,null,null,null,null,null,null,null,null,{"$f":"EntryData!C23&EntryData!D23","v":""},0]
[17,17,0,null,null,null,null,null,null,null,null,null,null,null,null,null,null,null,null,{"$f":"EntryData!C24&EntryData!D24","v":""},0]
[18,18,0,null,null,null,null,null,null,null,null,null,null,null,null,null,null,null,null,{"$f":"EntryData!C25&EntryData!D25","v":""},0]
[19,19,0,null,null,null,null,null,null,null,null,null,null,null,null,null,null,null,null,{"$f":"EntryData!C26&EntryData!D26","v":""},0]
[20,20,0,null,null,null,null,null,null,null,null,null,null,null,null,null,null,null,null,{"$f":"EntryData!C27&EntryData!D27","v":""},0]
[21,21,0,null,null,null,null,null,null,null,null,null,null,null,null,null,null,null,null,{"$f":"EntryData!C28&EntryData!D28","v":""},0]
[22,22,0,null,null,null,null,null,null,null,null,null,null,null,null,null,null,null,null,{"$f":"EntryData!C29&EntryData!D29","v":""},0]
[23,23,0,null,null,null,null,null,null,null,null,null,null,null,null,null,null,null,null,{"$f":"EntryData!C30&EntryData!D30","v":""},0]
[24,24,0,null,null,null,null,null,null,null,null,null,null,null,null,null,null,null,null,{"$f":"EntryData!C31&EntryData!D31","v":""},0]
[25,25,0,null,null,null,null,null,null,null,null,null,null,null,null,null,null,null,null,{"$f":"EntryData!C32&EntryData!D32","v":""},0]
[26,26,0,null,null,null,null,null,null,null,null,null,null,null,null,null,null,null,null,{"$f":"EntryData!C33&EntryData!D33","v":""},0]
[27,27,0,null,null,null,null,null,null,null,null,null,null,null,null,null,null,null,null,{"$f":"EntryData!C34&EntryData!D34","v":""},0]
[28,28,0,null,null,null,null,null,null,null,null,null,null,null,null,null,null,null,null,{"$f":"EntryData!C35&EntryData!D35","v":""},0]
[29,29,0,null,null,null,null,null,null,null,null,null,null,null,null,null,null,null,null,{"$f":"EntryData!C36&EntryData!D36","v":""},0]
[30,30,0,null,null,null,null,null,null,null,null,null,null,null,null,null,null,null,null,{"$f":"EntryData!C37&EntryData!D37","v":""},0]
[null,31,{"$f":"IF(A38<=$N$4,$M$4,IF(AND(A38>$N$4,A38<=$N$4+$N$5),$M$5,0))","v":3},null,null,null,null,null,null,null,null,null,null,null,null,null,null,null,null,{"$f":"EntryData!C38&EntryData!D38","v":""},0]
[null,32,3,null,null,null,null,null,null,null,null,null,null,null,null,null,null,null,null,{"$f":"EntryData!C39&EntryData!D39","v":""},{"$f":"IF(T39=\"\",0,COUNTIF($T$2:$T$38,T39))","v":0}]
[null,33,3,null,null,null,null,null,null,null,null,null,null,null,null,null,null,null,null,{"$f":"EntryData!C40&EntryData!D40","v":""},0]
[null,34,3,null,null,null,null,null,null,null,null,null,null,null,null,null,null,null,null,{"$f":"EntryData!C41&EntryData!D41","v":""},0]
[null,35,3,null,null,null,null,null,null,null,null,null,null,null,null,null,null,null,null,{"$f":"EntryData!C42&EntryData!D42","v":""},0]
[null,36,3,null,null,null,null,null,null,null,null,null,null,null,null,null,null,null,null,{"$f":"EntryData!C43&EntryData!D43","v":""},0]
[null,37,3,null,null,null,null,null,null,null,null,null,null,null,null,null,null,null,null,{"$f":"EntryData!C44&EntryData!D44","v":""},0]
[null,38,3,null,null,null,null,null,null,null,null,null,null,null,null,null,null,null,null,{"$f":"EntryData!C45&EntryData!D45","v":""},0]
[null,39,3,null,null,null,null,null,null,null,null,null,null,null,null,null,null,null,null,{"$f":"EntryData!C46&EntryData!D46","v":""},0]
[null,40,3,null,null,null,null,null,null,null,null,null,null,null,null,null,null,null,null,{"$f":"EntryData!C47&EntryData!D47","v":""},0]
[null,41,3,null,null,null,null,null,null,null,null,null,null,null,null,null,null,null,null,{"$f":"EntryData!C48&EntryData!D48","v":""},0]
[null,42,3,null,null,null,null,null,null,null,null,null,null,null,null,null,null,null,null,{"$f":"EntryData!C49&EntryData!D49","v":""},0]
[null,43,3,null,null,null,null,null,null,null,null,null,null,null,null,null,null,null,null,{"$f":"EntryData!C50&EntryData!D50","v":""},0]
[null,44,3,null,null,null,null,null,null,null,null,null,null,null,null,null,null,null,null,{"$f":"EntryData!C51&EntryData!D51","v":""},0]
[null,45,3,null,null,null,null,null,null,null,null,null,null,null,null,null,null,null,null,{"$f":"EntryData!C52&EntryData!D52","v":""},0]
[null,46,3,null,null,null,null,null,null,null,null,null,null,null,null,null,null,null,null,{"$f":"EntryData!C53&EntryData!D53","v":""},0]
[null,47,3,null,null,null,null,null,null,null,null,null,null,null,null,null,null,null,null,{"$f":"EntryData!C54&EntryData!D54","v":""},0]
[null,48,3,null,null,null,null,null,null,null,null,null,null,null,null,null,null,null,null,{"$f":"EntryData!C55&EntryData!D55","v":""},0]
[null,49,3,null,null,null,null,null,null,null,null,null,null,null,null,null,null,null,null,{"$f":"EntryData!C56&EntryData!D56","v":""},0]
[null,50,3,null,null,null,null,null,null,null,null,null,null,null,null,null,null,null,null,{"$f":"EntryData!C57&EntryData!D57","v":""},0]
[null,51,3,null,null,null,null,null,null,null,null,null,null,null,null,null,null,null,null,{"$f":"EntryData!C58&EntryData!D58","v":""},0]
[null,52,3,null,null,null,null,null,null,null,null,null,null,null,null,null,null,null,null,{"$f":"EntryData!C59&EntryData!D59","v":""},0]
[null,53,3,null,null,null,null,null,null,null,null,null,null,null,null,null,null,null,null,{"$f":"EntryData!C60&EntryData!D60","v":""},0]
[null,54,3,null,null,null,null,null,null,null,null,null,null,null,null,null,null,null,null,{"$f":"EntryData!C61&EntryData!D61","v":""},0]
[null,55,3,null,null,null,null,null,null,null,null,null,null,null,null,null,null,null,null,{"$f":"EntryData!C62&EntryData!D62","v":""},0]
[null,56,3,null,null,null,null,null,null,null,null,null,null,null,null,null,null,null,null,{"$f":"EntryData!C63&EntryData!D63","v":""},0]
[null,57,3,null,null,null,null,null,null,null,null,null,null,null,null,null,null,null,null,{"$f":"EntryData!C64&EntryData!D64","v":""},0]
[null,58,3,null,null,null,null,null,null,null,null,null,null,null,null,null,null,null,null,{"$f":"EntryData!C65&EntryData!D65","v":""},0]
[null,59,3,null,null,null,null,null,null,null,null,null,null,null,null,null,null,null,null,{"$f":"EntryData!C66&EntryData!D66","v":""},0]
[null,60,3,null,null,null,null,null,null,null,null,null,null,null,null,null,null,null,null,{"$f":"EntryData!C67&EntryData!D67","v":""},0]
[null,61,3,null,null,null,null,null,null,null,null,null,null,null,null,null,null,null,null,{"$f":"EntryData!C68&EntryData!D68","v":""},0]
[null,62,3,null,null,null,null,null,null,null,null,null,null,null,null,null,null,null,null,{"$f":"EntryData!C69&EntryData!D69","v":""},0]
[null,63,3,null,null,null,null,null,null,null,null,null,null,null,null,null,null,null,null,{"$f":"EntryData!C70&EntryData!D70","v":""},0]
[null,64,3,null,null,null,null,null,null,null,null,null,null,null,null,null,null,null,null,{"$f":"EntryData!C71&EntryData!D71","v":""},0]
[null,65,3,null,null,null,null,null,null,null,null,null,null,null,null,null,null,null,null,{"$f":"EntryData!C72&EntryData!D72","v":""},0]
[null,66,3,null,null,null,null,null,null,null,null,null,null,null,null,null,null,null,null,{"$f":"EntryData!C73&EntryData!D73","v":""},0]
[null,{"$f":"B73+1","v":67},3,null,null,null,null,null,null,null,null,null,null,null,null,null,null,null,null,{"$f":"EntryData!C74&EntryData!D74","v":""},0]
[null,68,3,null,null,null,null,null,null,null,null,null,null,null,null,null,null,null,null,{"$f":"EntryData!C75&EntryData!D75","v":""},0]
[null,69,3,null,null,null,null,null,null,null,null,null,null,null,null,null,null,null,null,{"$f":"EntryData!C76&EntryData!D76","v":""},0]
[null,70,3,null,null,null,null,null,null,null,null,null,null,null,null,null,null,null,null,{"$f":"EntryData!C77&EntryData!D77","v":""},0]
[null,71,3,null,null,null,null,null,null,null,null,null,null,null,null,null,null,null,null,{"$f":"EntryData!C78&EntryData!D78","v":""},0]
[null,72,3,null,null,null,null,null,null,null,null,null,null,null,null,null,null,null,null,{"$f":"EntryData!C79&EntryData!D79","v":""},0]
[null,73,3,null,null,null,null,null,null,null,null,null,null,null,null,null,null,null,null,{"$f":"EntryData!C80&EntryData!D80","v":""},0]
[null,74,3,null,null,null,null,null,null,null,null,null,null,null,null,null,null,null,null,{"$f":"EntryData!C81&EntryData!D81","v":""},0]
[null,75,3,null,null,null,null,null,null,null,null,null,null,null,null,null,null,null,null,{"$f":"EntryData!C82&EntryData!D82","v":""},0]
[null,76,3,null,null,null,null,null,null,null,null,null,null,null,null,null,null,null,null,{"$f":"EntryData!C83&EntryData!D83","v":""},0]
[null,77,3,null,null,null,null,null,null,null,null,null,null,null,null,null,null,null,null,{"$f":"EntryData!C84&EntryData!D84","v":""},0]
[null,78,3,null,null,null,null,null,null,null,null,null,null,null,null,null,null,null,null,{"$f":"EntryData!C85&EntryData!D85","v":""},0]
[null,79,3,null,null,null,null,null,null,null,null,null,null,null,null,null,null,null,null,{"$f":"EntryData!C86&EntryData!D86","v":""},0]
[null,80,3,null,null,null,null,null,null,null,null,null,null,null,null,null,null,null,null,{"$f":"EntryData!C87&EntryData!D87","v":""},0]
[null,81,{"$f":"IF(A88<=$N$4,$M$4,IF(AND(A88>$N$4,A88<=$N$4+$N$5),$M$5,0))","v":3},null,null,null,null,null,null,null,null,null,null,null,null,null,null,null,null,{"$f":"EntryData!C88&EntryData!D88","v":""},0]
[null,82,3,null,null,null,null,null,null,null,null,null,null,null,null,null,null,null,null,{"$f":"EntryData!C89&EntryData!D89","v":""},0]
[null,83,3,null,null,null,null,null,null,null,null,null,null,null,null,null,null,null,null,{"$f":"EntryData!C90&EntryData!D90","v":""},0]
[null,84,3,null,null,null,null,null,null,null,null,null,null,null,null,null,null,null,null,{"$f":"EntryData!C91&EntryData!D91","v":""},0]
[null,85,3,null,null,null,null,null,null,null,null,null,null,null,null,null,null,null,null,{"$f":"EntryData!C92&EntryData!D92","v":""},0]
[null,86,3,null,null,null,null,null,null,null,null,null,null,null,null,null,null,null,null,{"$f":"EntryData!C93&EntryData!D93","v":""},0]
[null,87,3,null,null,null,null,null,null,null,null,null,null,null,null,null,null,null,null,{"$f":"EntryData!C94&EntryData!D94","v":""},0]
[null,88,3,null,null,null,null,null,null,null,null,null,null,null,null,null,null,null,null,{"$f":"EntryData!C95&EntryData!D95","v":""},0]
[null,89,3,null,null,null,null,null,null,null,null,null,null,null,null,null,null,null,null,{"$f":"EntryData!C96&EntryData!D96","v":""},0]
[null,90,3,null,null,null,null,null,null,null,null,null,null,null,null,null,null,null,null,{"$f":"EntryData!C97&EntryData!D97","v":""},0]
[null,91,3,null,null,null,null,null,null,null,null,null,null,null,null,null,null,null,null,{"$f":"EntryData!C98&EntryData!D98","v":""},0]
[null,92,{"$f":"IF(A99<=$N$4,$M$4,IF(AND(A99>$N$4,A99<=$N$4+$N$5),$M$5,0))","v":3},null,null,null,null,null,null,null,null,null,null,null,null,null,null,null,null,{"$f":"EntryData!C99&EntryData!D99","v":""},0]
[null,93,3,null,null,null,null,null,null,null,null,null,null,null,null,null,null,null,null,{"$f":"EntryData!C100&EntryData!D100","v":""},0]
[null,94,3,null,null,null,null,null,null,null,null,null,null,null,null,null,null,null,null,{"$f":"EntryData!C101&EntryData!D101","v":""},0]
[null,95,3,null,null,null,null,null,null,null,null,null,null,null,null,null,null,null,null,{"$f":"EntryData!C102&EntryData!D102","v":""},0]
[null,96,3,null,null,null,null,null,null,null,null,null,null,null,null,null,null,null,null,{"$f":"EntryData!C103&EntryData!D103","v":""},{"$f":"IF(T103=\"\",0,COUNTIF($T$2:$T$38,T103))","v":0}]
[null,97,{"$f":"IF(A104<=$N$4,$M$4,IF(AND(A104>$N$4,A104<=$N$4+$N$5),$M$5,0))","v":3},null,null,null,null,null,null,null,null,null,null,null,null,null,null,null,null,{"$f":"EntryData!C104&EntryData!D104","v":""},0]
[null,98,3,null,null,null,null,null,null,null,null,null,null,null,null,null,null,null,null,{"$f":"EntryData!C105&EntryData!D105","v":""},0]
[null,99,3,null,null,null,null,null,null,null,null,null,null,null,null,null,null,null,null,{"$f":"EntryData!C106&EntryData!D106","v":""},0]
[null,100,3,null,null,null,null,null,null,null,null,null,null,null,null,null,null,null,null,{"$f":"EntryData!C107&EntryData!D107","v":""},0]

{"sheet":"EntryData","index":1,"n_rows":17,"n_cols":5,"rows_kept":17,"cut":false,"hidden":false,"merged":[]}
["Archer","Team","Target","Stand","Appendance"]
["oda1","team",1,"A",1]
["oda2","team",2,"A",1]
["oda3","team",3,"A",1]
["oda4","team",4,"A",1]
["oda5","team",5,"A",1]
["oda6","team",6,"A",1]
["oda7","team",1,"B",1]
["oda8","team",2,"B",1]
["oda9","team",3,"B",1]
["oda10","team",4,"B",1]
["oda11","team",5,"B",1]
["oda12","team",6,"B",1]
["oda13","team",1,"C",1]
["oda14","team",2,"C",1]
["oda15","team",3,"C",1]
["oda16","team",4,"C",1]